bitfinex-derivatives/quotes_SOLF0:USTF0_20241026
["timestamp","ask_amount","ask_price","bid_price","bid_amount"]
[1729959333489,4.64,168.84,168.75,4.64]
[1729959333790,2.9653,168.83,168.79,2.9658]
[1729959335286,1.2678,168.87,168.75,4.64]
[1729959335491,4.54,168.92,168.76,4.54]
[1729959336491,2.9645,168.88,168.83,2.9651]
[1729959336891,4.54,168.88,168.79,7.5059]
[1729959337187,4.54,168.88,168.78,4.54]
[1729959337387,4.54,168.88,168.79,1.2661]
[1729959338293,2.965,168.85,168.81,2.9655]
[1729959339492,2.9653,168.83,168.79,1.2661]
[1729959339693,2.9653,168.83,168.78,2.966]
[1729959339894,2.4839,168.87,168.78,2.966]
[1729959340487,2.9657,168.81,168.76,2.9664]
[1729959340791,2.9657,168.81,168.75,4.54]
[1729959341692,4.54,168.84,168.75,4.54]
[1729959341892,2.9654,168.82,168.77,2.9662]
[1729959344489,4.54,168.84,168.77,2.9662]
[1729959344696,4.54,168.84,168.73,1.2661]
[1729959344995,4.54,168.84,168.73,5.8061]
[1729959345294,4.54,168.84,168.74,2.9667]
[1729959345496,4.54,168.84,168.73,5.8061]
[1729959345996,4.54,168.84,168.75,2.9666]
[1729959346496,2.9656,168.81,168.77,2.9663]
[1729959346995,4.54,168.84,168.73,5.8061]
[1729959347399,2.9654,168.83,168.73,5.8061]
[1729959347597,4.54,168.84,168.73,5.8061]
[1729959348502,2.9654,168.82,168.77,2.9661]
[1729959348901,2.9654,168.82,168.73,5.8061]
[1729959349203,2.9653,168.83,168.78,2.9659]
[1729959350805,2.9656,168.81,168.77,2.9661]
[1729959351506,4.54,168.84,168.77,2.9661]
[1729959351707,2.9654,168.82,168.77,2.9661]
[1729959352106,2.9654,168.82,168.73,5.8061]
[1729959352303,2.9654,168.82,168.78,2.9661]
[1729959352503,2.4839,168.87,168.77,4.54]
[1729959352707,1.2806,168.87,168.81,2.9656]
[1729959353606,1.2806,168.87,168.78,5.8463]
[1729959354007,1.2806,168.87,168.78,4.54]
[1729959354304,1.2806,168.87,168.74,1.3063]
[1729959354305,2.9655,168.82,168.77,2.9661]
[1729959354610,4.54,168.84,168.77,2.9661]
[1729959354805,2.9655,168.82,168.77,2.9661]
[1729959355011,4.54,168.84,168.77,2.9661]
[1729959355308,4.54,168.84,168.76,2.9663]
[1729959355612,2.9657,168.81,168.76,2.9663]
[1729959356408,2.9658,168.8,168.76,2.9663]
[1729959356611,4.54,168.84,168.74,1.3063]
[1729959356911,2.9663,168.77,168.73,4.233]
[1729959360009,2.9663,168.77,168.71,2.9673]
[1729959360211,1.2642,168.79,168.71,2.9673]
[1729959360510,4.17249222,168.79,168.68,1.2675]
[1729959360716,4.17249222,168.79,168.7,2.9674]
[1729959360911,4.54,168.78,168.7,2.9674]
[1729959361210,4.54,168.78,168.68,1.2675]
[1729959361418,4.54,168.78,168.54,5.9407]
[1729959361616,4.54,168.78,168.61,1.306]
[1729959361617,18.7915,168.77,168.61,1.306]
[1729959361815,18.7915,168.77,168.64,2.9685]
[1729959362021,1.303,168.76,168.61,5.846]
[1729959362314,2.968,168.68,168.61,5.846]
[1729959362518,4.54,168.69,168.61,1.306]
[1729959362713,2.9681,168.67,168.58,6.997]
[1729959363111,2.9681,168.67,168.61,2.969]
[1729959363721,2.9681,168.67,168.58,6.997]
[1729959363920,2.9681,168.67,168.62,2.9689]
[1729959364124,4.54,168.68,168.58,6.997]
[1729959364420,4.54,168.68,168.58,2.457]
[1729959364627,2.9683,168.66,168.58,1.2675]
[1729959364923,1.234,168.67,168.58,1.2675]
[1729959365121,1.234,168.67,168.6,2.9692]
[1729959365721,2.9687,168.64,168.58,4.237]
[1729959366026,7.5087,168.64,168.58,4.237]
[1729959366717,7.5087,168.64,168.59,2.9694]
[1729959367424,2.9688,168.63,168.59,2.9694]
[1729959367624,4.54,168.64,168.57,2.9696]
[1729959367828,4.54,168.64,168.52,4.54]
[1729959368025,2.9688,168.63,168.52,4.54]
[1729959368220,4.54,168.62,168.55,2.97]
[1729959368419,4.54,168.61,168.51,1.2605]
[1729959368622,2.9696,168.58,168.51,1.2605]
[1729959369023,2.9696,168.58,168.53,2.9703]
[1729959369227,4.54,168.61,168.51,1.2605]
[1729959370223,2.9694,168.6,168.54,2.9702]
[1729959370423,4.54,168.61,168.54,2.9702]
[1729959370727,2.9695,168.59,168.54,2.9702]
[1729959371028,4.54,168.61,168.55,2.97]
[1729959371430,2.9693,168.6,168.55,2.97]
[1729959372523,2.9693,168.6,168.51,1.2605]
[1729959372732,1.234,168.67,168.51,1.2605]
[1729959372928,4.54,168.66,168.51,1.2605]
[1729959373129,2.9686,168.64,168.55,2.97]
[1729959373331,2.9686,168.64,168.54,4.54]
[1729959373630,4.54,168.66,168.54,4.54]
[1729959373826,2.9687,168.63,168.58,2.9695]
[1729959374031,4.54,168.66,168.54,4.54]
[1729959374232,2.9693,168.6,168.55,2.9701]
[1729959375033,4.54,168.61,168.51,5.8005]
[1729959375232,2.9696,168.58,168.51,5.8005]
[1729959375535,4.54,168.61,168.51,5.8005]
[1729959375733,2.9696,168.59,168.54,2.9703]
[1729959375926,4.54,168.61,168.51,1.2605]
[1729959376132,1.21,168.6,168.51,1.2605]
[1729959376338,2.9697,168.58,168.53,2.9703]
[1729959376628,4.54,168.57,168.53,2.9703]
[1729959376834,4.54,168.57,168.48,302.11345951]
[1729959377136,2.9701,168.56,168.51,2.9707]
[1729959377433,4.54,168.57,168.48,302.11345951]
[1729959377935,2.97,168.56,168.52,2.9706]
[1729959378132,2.97,168.56,168.49,1.2083]
[1729959378133,4.54,168.56,168.49,1.2083]
[1729959378737,4.54,168.56,168.52,2.9706]
[1729959379338,2.5108,168.6,168.49,1.2083]
[1729959379538,4.54,168.59,168.5,1.2468]
[1729959380243,4.54,168.59,168.52,2.9705]
[1729959380440,4.54,168.59,168.5,1.2468]
[1729959380940,4.54,168.59,168.55,2.97]
[1729959382039,2.9697,168.58,168.53,2.9704]
[1729959382242,4.54,168.59,168.5,1.2468]
[1729959382741,2.97,168.56,168.51,2.9707]
[1729959383742,4.54,168.59,168.5,1.2468]
[1729959384043,17.81,168.67,168.5,1.2468]
[1729959384340,22.35,168.66,168.5,1.2468]
[1729959384536,2.969,168.62,168.53,2.9704]
[1729959384841,4.54,168.61,168.5,1.2468]
[1729959385241,2.9695,168.59,168.54,2.9702]
[1729959385447,4.54,168.61,168.5,1.2468]
[1729959385639,2.97,168.56,168.52,2.9707]
[1729959385839,1.3112,168.6,168.5,1.2468]
[1729959386242,2.9696,168.58,168.53,2.9703]
[1729959386438,1.3112,168.6,168.5,1.2468]
[1729959386644,4.54,168.57,168.5,1.2468]
[1729959386944,2.9701,168.56,168.51,2.9707]
[1729959387245,4.54,168.57,168.49,1.2083]
[1729959387653,2.9704,168.54,168.5,2.971]
[1729959387849,4.54,168.57,168.5,2.971]
[1729959388344,2.9703,168.55,168.5,2.971]
[1729959389348,2.9702,168.55,168.5,2.971]
[1729959389548,4.54,168.57,168.5,2.971]
[1729959389951,2.9702,168.55,168.5,2.971]
[1729959390150,4.54,168.57,168.5,2.971]
[1729959390341,4.54,168.57,168.44,4.54]
[1729959390547,2.9705,168.54,168.43,1.3166]
[1729959390746,1.2797,168.59,168.43,1.3166]
[1729959390747,4.54,168.53,168.43,1.3166]
[1729959391450,2.971,168.5,168.45,2.9719]
[1729959391949,4.54,168.49,168.45,2.9719]
[1729959393451,4.54,168.49,168.43,1.3166]
[1729959394151,4.54,168.49,168.46,2.9716]
[1729959394948,19.0897,168.59,168.49,2.9711]
[1729959395151,4.54,168.58,168.43,1.3166]
[1729959395449,22.35,168.58,168.43,1.3166]
[1729959395654,22.35,168.58,168.46,2.9716]
[1729959395853,2.9708,168.52,168.46,2.9716]
[1729959396057,4.54,168.51,168.46,2.9716]
[1729959396557,4.54,168.51,168.45,2.9718]
[1729959396755,4.54,168.51,168.43,1.3166]
[1729959397255,4.54,168.51,168.46,2.9716]
[1729959397755,7.511,168.51,168.46,2.9716]
[1729959398351,2.971,168.5,168.46,2.9716]
[1729959398552,4.54,168.51,168.46,2.9716]
[1729959398950,4.54,168.51,168.43,1.3166]
[1729959399658,4.54,168.51,168.47,2.9714]
[1729959399956,4.54,168.51,168.43,1.3166]
[1729959400156,2.971,168.5,168.46,2.9717]
[1729959400357,2.971,168.5,168.43,1.3166]
[1729959401455,2.971,168.5,168.46,2.9717]
[1729959402451,4.54,168.51,168.35,8.9207]
[1729959402654,1.2642,168.5,168.36,7.1539]
[1729959402848,1.2642,168.5,168.36,8.3708]
[1729959403354,2.9717,168.47,168.42,2.9724]
[1729959403553,4.54,168.46,168.42,2.9724]
[1729959405159,1.2642,168.5,168.36,8.3708]
[1729959405352,4.54,168.49,168.36,8.3708]
[1729959407261,7.5113,168.49,168.44,2.972]
[1729959409561,4.54,168.49,168.4,4.54]
[1729959410461,4.54,168.49,168.46,2.9717]
[1729959410762,2.971,168.51,168.46,2.9717]
[1729959410961,4.54,168.5,168.46,2.9717]
[1729959412069,4.54,168.5,168.4,4.54]
[1729959412362,5.7898,168.5,168.38,4.54]
[1729959412562,2.9719,168.45,168.4,2.9726]
[1729959412860,4.54,168.46,168.37,4.54]
[1729959413163,4.54,168.46,168.36,3.8308]
[1729959413362,4.54,168.46,168.36,2.6139]
[1729959413764,2.9723,168.43,168.36,2.6139]
[1729959414667,2.9723,168.43,168.38,2.973]
[1729959415467,4.54,168.46,168.36,2.6139]
[1729959415668,2.9721,168.44,168.39,2.9729]
[1729959416467,1.3156,168.49,168.36,2.6139]
[1729959416668,4.54,168.48,168.41,2.9726]
[1729959417171,2.972,168.45,168.41,2.9726]
[1729959420772,1.2498,168.5,168.37,4.54]
[1729959421071,4.54,168.5,168.37,4.54]
[1729959421274,4.54,168.5,168.38,1.2995]
[1729959421470,7.5111,168.5,168.45,2.9719]
[1729959422369,1.2459,168.58,168.41,4.54]
[1729959422573,5.7859,168.58,168.41,4.54]
[1729959422872,2.9706,168.53,168.41,4.54]
[1729959424272,4.54,168.54,168.41,4.54]
[1729959425273,4.54,168.54,168.44,2.9719]
[1729959425478,4.54,168.54,168.45,8.3117]
[1729959425876,4.54,168.54,168.49,2.9711]
[1729959426078,4.54,168.58,168.45,8.3117]
[1729959426477,1.2637,168.59,168.45,8.3117]
[1729959426671,4.54,168.58,168.45,8.3117]
[1729959427378,2.97,168.56,168.51,2.9708]
[1729959427676,4.54,168.58,168.45,8.3117]
[1729959427876,4.54,168.58,168.52,2.9705]
[1729959428579,2.9699,168.57,168.52,2.9705]
[1729959428773,57.7,168.6,168.49,4.54]
[1729959428966,4.54,168.59,168.49,4.54]
[1729959429171,0.9888,168.65,168.49,4.54]
[1729959429172,4.54,168.6,168.49,4.54]
[1729959429371,4.54,168.6,168.45,3.7717]
[1729959429570,4.54,168.6,168.46,4.54]
[1729959429774,2.9695,168.59,168.53,2.9704]
[1729959429970,4.54,168.6,168.5,4.54]
[1729959430578,4.54,168.6,168.51,1.2443]
[1729959430876,4.54,168.6,168.56,2.9699]
[1729959431580,4.54,168.6,168.54,2.9702]
[1729959432177,4.54,168.6,168.51,1.2443]
[1729959432178,4.54,168.6,168.48,4.54]
[1729959432374,2.4293,168.59,168.48,4.54]
[1729959432575,2.9701,168.56,168.48,4.54]
[1729959433077,2.9701,168.56,168.5,2.9709]
[1729959433279,2.9701,168.56,168.48,4.54]
[1729959433980,2.9701,168.56,168.51,2.9707]
[1729959434577,4.54,168.56,168.47,4.54]
[1729959434777,2.9702,168.55,168.5,2.971]
[1729959435481,2.9706,168.53,168.48,2.9713]
[1729959435671,4.54,168.56,168.45,4.54]
[1729959436170,2.9705,168.53,168.47,2.9714]
[1729959436375,4.54,168.52,168.44,3.7494]
[1729959436576,4.54,168.52,168.44,2.557]
[1729959437478,2.971,168.51,168.46,2.9717]
[1729959440377,4.54,168.52,168.46,2.9717]
[1729959440584,2.9711,168.5,168.46,2.9717]
[1729959441578,2.9715,168.48,168.44,1.2669]
[1729959442273,2.9715,168.48,168.4,4.54]
[1729959442471,2.9715,168.48,168.4,5.8113]
[1729959442681,2.9715,168.48,168.43,2.9721]
[1729959443380,1.2971,168.51,168.4,5.8113]
[1729959443581,7.5108,168.52,168.47,2.9715]
[1729959443782,4.54,168.52,168.4,5.8113]
[1729959444382,2.971,168.51,168.43,2.9721]
[1729959444581,4.54,168.52,168.4,5.8113]
[1729959445283,4.54,168.52,168.48,2.9713]
[1729959445782,4.54,168.53,168.45,1.2927]
[1729959445982,4.54,168.53,168.45,2.5154]
[1729959446277,1.2149,168.57,168.45,2.5154]
[1729959446478,17.81,168.68,168.45,2.5154]
[1729959446686,8.0508,168.67,168.46,2.95856352]
[1729959446983,8.0508,168.67,168.55,2.9701]
[1729959446984,2.9692,168.61,168.55,2.9701]
[1729959447186,4.54,168.6,168.55,2.9701]
[1729959447677,7.5093,168.6,168.54,2.9703]
[1729959448189,7.5093,168.6,168.51,4.54]
[1729959448490,7.5093,168.6,168.56,2.9699]
[1729959449389,4.54,168.6,168.52,1.248]
[1729959449586,3.5108,168.67,168.52,1.248]
[1729959449785,4.54,168.66,168.53,1.2636]
[1729959450393,2.9689,168.62,168.57,2.9696]
[1729959451191,2.9695,168.59,168.54,4.2881]
[1729959451491,2.9695,168.59,168.54,1.3179]
[1729959452294,2.9695,168.59,168.55,2.9701]
[1729959455194,4.54,168.62,168.55,2.9701]
[1729959455195,2.9693,168.6,168.55,2.9701]
[1729959460296,2.9699,168.57,168.52,2.9706]
[1729959461399,7.5493,168.6,168.56,2.9699]
[1729959462606,4.58,168.6,168.53,4.58]
[1729959462901,4.58,168.63,168.54,1.1902]
[1729959463102,4.58,168.63,168.55,1.2551]
[1729959463699,2.9692,168.61,168.57,2.9697]
[1729959466102,2.5232,168.67,168.55,1.2551]
[1729959466300,4.58,168.66,168.55,2.5666]
[1729959466598,4.58,168.66,168.57,2.9697]
[1729959466996,4.58,168.66,168.55,7.1466]
[1729959467200,2.9688,168.63,168.58,2.9696]
[1729959467400,4.58,168.66,168.58,2.9696]
[1729959467599,2.9695,168.59,168.55,1.2551]
[1729959467803,4.58,168.62,168.53,4.58]
[1729959468194,2.9693,168.6,168.56,2.9699]
[1729959478306,4.58,168.62,168.54,1.2818]
[1729959478506,4.58,168.62,168.55,2.9701]
[1729959478911,4.58,168.62,168.54,1.2818]
[1729959479111,2.9694,168.6,168.56,2.9699]
[1729959481115,4.58,168.62,168.56,2.9699]
[1729959481410,2.9694,168.6,168.56,2.9699]
[1729959481917,2.9695,168.59,168.56,2.9699]
[1729959482312,4.58,168.62,168.54,1.2818]
[1729959482611,4.58,168.62,168.5,4.54]
[1729959482811,2.4983,168.61,168.48,5.7537]
[1729959483012,3.4849,168.61,168.48,5.7537]
[1729959483909,2.9702,168.55,168.48,5.7537]
[1729959484103,4.54,168.58,168.48,5.7537]
[1729959484913,2.9705,168.54,168.49,2.9711]
[1729959485211,4.54,168.58,168.49,2.9711]
[1729959485913,2.9706,168.53,168.49,2.9711]
[1729959486411,2.9785243,168.59,168.47,193.59569829]
[1729959486716,4.54,168.58,168.43,4.54]
[1729959487211,4.54,168.58,168.42,2.5324]
[1729959487409,4.54,168.58,168.42,7.0724]
[1729959487706,2.9708,168.52,168.46,2.9716]
[1729959487911,4.54,168.52,168.42,7.0724]
[1729959488302,2.9706,168.53,168.48,2.9713]
[1729959488601,2.9706,168.53,168.42,7.0724]
[1729959488602,4.54,168.54,168.42,7.0724]
[1729959488806,2.9705,168.53,168.48,2.9712]
[1729959492014,4.54,168.54,168.42,7.0724]
[1729959492217,4.54,168.54,168.49,2.9711]
[1729959493018,4.54,168.54,168.42,7.0724]
[1729959493721,2.9707,168.52,168.45,2.9718]
[1729959493922,4.54,168.54,168.43,4.54]
[1729959494122,2.4618,168.53,168.43,4.54]
[1729959494323,2.9715,168.48,168.43,7.5121]
[1729959494526,2.9715,168.48,168.43,4.54]
[1729959494823,2.9713,168.49,168.44,2.972]
[1729959495718,4.54,168.5,168.42,7.0724]
[1729959496024,2.9716,168.47,168.43,2.9722]
[1729959496424,2.9714,168.48,168.43,2.9722]
[1729959496613,4.54,168.5,168.43,2.9722]
[1729959497221,2.9714,168.48,168.43,2.9722]
[1729959500127,2.9714,168.48,168.44,2.9721]
[1729959502028,4.54,168.5,168.42,2.5324]
[1729959502226,7.5111,168.5,168.45,2.9718]
[1729959502429,2.9711,168.5,168.45,2.9718]
[1729959503632,4.54,168.51,168.45,2.9718]
[1729959503824,2.9712,168.5,168.45,2.9718]
[1729959504324,2.9712,168.5,168.44,2.972]
[1729959504520,2.9712,168.5,168.42,2.5324]
[1729959504830,2.9712,168.5,168.46,2.9716]
[1729959506430,2.9712,168.5,168.47,2.9715]
[1729959508732,2.9715,168.48,168.46,2.9717]
[1729959508932,4.54,168.51,168.46,2.9717]
[1729959509134,4.54,168.51,168.42,7.0724]
[1729959509526,2.9712,168.49,168.42,7.0724]
[1729959509932,4.54,168.51,168.42,7.0724]
[1729959510133,2.9714,168.48,168.45,2.9718]
[1729959511735,4.54,168.51,168.42,7.0724]
[1729959511936,2.94921338,168.59,168.42,7.0724]
[1729959512235,5.7997,168.58,168.42,7.0724]
[1729959512430,8.70230618,168.58,168.42,7.0724]
[1729959513433,2.9706,168.53,168.48,2.9712]
[1729959516937,2.971,168.51,168.47,2.9715]
[1729959517128,4.54,168.54,168.43,4.54]
[1729959517936,2.9713,168.49,168.44,2.9719]
[1729959518537,2.9713,168.49,168.43,4.54]
[1729959518735,2.9713,168.49,168.45,2.9718]
[1729959519835,2.9713,168.49,168.43,4.54]
[1729959520035,2.9713,168.49,168.44,2.972]
[1729959524138,2.9713,168.49,168.45,2.9719]
[1729959528638,4.54,168.5,168.45,2.9719]
[1729959528846,7.5106,168.53,168.42,2.5324]
[1729959529044,7.5106,168.53,168.43,1.249]
[1729959529340,2.9706,168.53,168.43,1.249]
[1729959529544,4.54,168.59,168.43,1.249]
[1729959530138,4.54,168.59,168.54,2.9702]
[1729959531343,2.9697,168.58,168.54,2.9702]
[1729959531848,2.9701,168.56,168.51,2.9707]
[1729959532041,2.9701,168.56,168.48,4.54]
[1729959532344,2.9698,168.57,168.52,2.9706]
[1729959532849,4.54,168.59,168.52,2.9706]
[1729959533042,2.97,168.56,168.52,2.9706]
[1729959535642,4.54,168.59,168.49,2.5698]
[1729959535942,2.9697,168.58,168.49,2.5698]
[1729959536649,2.9697,168.58,168.53,2.9704]
[1729959538548,2.9697,168.58,168.49,2.5698]
[1729959538746,2.9697,168.58,168.54,2.9703]
[1729959542357,2.9698,168.57,168.54,2.9703]
[1729959544564,2.9694,168.6,168.56,2.9698]
[1729959544754,2.9694,168.6,168.52,4.54]
[1729959545362,2.9694,168.6,168.56,2.9698]
[1729959545656,3.4864,168.67,168.52,4.54]
[1729959545856,4.54,168.66,168.52,4.54]
[1729959546053,4.54,168.65,168.52,4.54]
[1729959546357,2.9689,168.62,168.58,2.9694]
[1729959547259,7.5083,168.66,168.61,2.9689]
[1729959547449,2.9683,168.66,168.57,3.7892]
[1729959547848,2.9692,168.61,168.57,2.5484]
[1729959548053,4.54,168.64,168.57,2.5484]
[1729959548861,2.9691,168.62,168.57,5.5182]
[1729959551759,2.9689,168.62,168.57,2.5484]
[1729959551962,4.54,168.64,168.57,2.5484]
[1729959552262,2.9689,168.62,168.57,5.5181]
[1729959553359,2.9689,168.62,168.58,2.9696]
[1729959553560,2.9685,168.65,168.57,2.5484]
[1729959554563,2.9685,168.65,168.6,2.9691]
[1729959555464,2.9685,168.65,168.59,4.54]
[1729959555762,2.9685,168.65,168.61,2.9691]
[1729959555958,2.9682,168.67,168.59,4.54]
[1729959556161,4.54,168.7,168.64,2.9684]
[1729959556667,2.9677,168.69,168.64,2.9684]
[1729959556857,4.54,168.71,168.57,2.5484]
[1729959557062,4.54,168.71,168.58,4.54]
[1729959558065,7.5073,168.71,168.58,4.54]
[1729959558265,1.2271,168.74,168.58,4.54]
[1729959558460,4.54,168.73,168.58,4.54]
[1729959558661,1.2271,168.74,168.58,4.54]
[1729959559371,2.9671,168.72,168.67,2.9679]
[1729959561571,2.9671,168.72,168.68,2.9678]
[1729959561760,2.9671,168.72,168.66,4.54]
[1729959562369,2.9671,168.72,168.67,2.9679]
[1729959564567,2.9669,168.74,168.7,2.9675]
[1729959564768,2.2375,168.8,168.67,2.5712]
[1729959565072,4.54,168.79,168.67,3.8484]
[1729959565776,2.9663,168.77,168.72,2.9671]
[1729959570679,4.54,168.79,168.67,3.8484]
[1729959570872,4.54,168.79,168.69,2.9677]
[1729959572680,4.54,168.79,168.7,2.9675]
[1729959572872,2.9664,168.77,168.7,2.9675]
[1729959573072,4.54,168.79,168.7,2.9675]
[1729959573477,2.9669,168.74,168.7,2.9675]
[1729959574277,2.967,168.73,168.7,2.9675]
[1729959574479,4.52,168.75,168.64,7.4885]
[1729959574677,1.2804,168.72,168.64,4.52]
[1729959575283,2.9674,168.71,168.64,4.52]
[1729959576279,2.9674,168.71,168.66,2.9682]
[1729959577181,2.9674,168.71,168.67,2.968]
[1729959577576,2.967,168.73,168.64,4.52]
[1729959577780,4.52,168.74,168.71,2.9673]
[1729959577982,4.52,168.74,168.64,4.52]
[1729959578184,7.4868,168.74,168.64,4.52]
[1729959578384,7.4868,168.74,168.69,2.9676]
[1729959579177,7.4868,168.74,168.7,2.9675]
[1729959580281,2.9668,168.74,168.7,2.9675]
[1729959585283,2.9671,168.73,168.68,7.4878]
[1729959586486,5.8291,168.77,168.68,4.52]
[1729959586789,2.9673,168.72,168.68,7.4878]
[1729959590884,2.967,168.73,168.68,7.4878]
[1729959591681,5.8291,168.77,168.68,4.52]
[1729959591888,1.3091,168.77,168.68,4.52]
[1729959592086,1.3091,168.77,168.69,1.2234]
[1729959592385,2.9666,168.75,168.71,2.9672]
[1729959592887,1.3091,168.77,168.69,1.2234]
[1729959593087,2.9671,168.73,168.69,1.2234]
[1729959593989,2.9671,168.73,168.69,4.191]
[1729959594888,2.9667,168.75,168.69,1.2234]
[1729959595088,1.3091,168.77,168.69,1.2234]
[1729959595784,2.9671,168.73,168.69,4.1911]
[1729959602885,1.3091,168.77,168.69,1.2234]
[1729959603189,17.82,168.99,168.69,1.2234]
[1729959603389,7.0315,168.85,168.7,1.3028]
[1729959603690,9.9965,168.85,168.79,2.9658]
[1729959604187,2.9644,168.88,168.82,2.9653]
[1729959606393,1.2867,168.91,168.8,4.52]
[1729959606590,4.52,168.94,168.8,4.52]
[1729959606791,1.3014,168.95,168.8,4.52]
[1729959607396,2.964,168.9,168.82,2.9653]
[1729959607599,4.52,168.92,168.82,4.52]
[1729959607797,1.2825,168.91,168.82,4.52]
[1729959608097,7.4836,168.92,168.82,4.52]
[1729959608501,4.52,168.92,168.82,4.52]
[1729959608694,2.9638,168.91,168.84,2.965]
[1729959609197,4.52,168.92,168.82,4.52]
[1729959609389,2.9644,168.88,168.82,4.52]
[1729959610501,2.9642,168.89,168.83,2.9651]
[1729959612002,2.9638,168.91,168.85,2.9648]
[1729959612202,4.52,168.92,168.82,4.52]
[1729959613005,2.9638,168.91,168.85,2.9647]
[1729959614210,4.52,168.94,168.82,4.52]
[1729959614406,7.4834,168.94,168.88,2.9642]
[1729959614710,2.9634,168.94,168.87,4.52]
[1729959614908,2.9634,168.94,168.88,1.2978]
[1729959615306,2.9634,168.94,168.89,2.964]
[1729959617205,4.52,168.97,168.88,1.2978]
[1729959617711,2.9636,168.93,168.88,1.2978]
[1729959618712,2.9636,168.93,168.88,4.2621]
[1729959619905,58.9036,168.99,168.9,2.9638]
[1729959619906,2.9631,168.96,168.9,2.9638]
[1729959620106,4.52,168.98,168.88,2.6038]
[1729959620307,4.52,169.02,168.89,1.2472]
[1729959620710,2.9625,168.99,168.94,2.9632]
[1729959621214,2.9621,169.01,168.96,2.9629]
[1729959621409,4.52,169.02,168.93,4.52]
[1729959622313,2.9623,169.0,168.93,4.52]
[1729959622607,4.52,169.02,168.93,4.52]
[1729959624316,2.9626,168.98,168.93,7.4834]
[1729959625518,2.9634,168.94,168.89,4.2112]
[1729959625717,4.52,169.02,168.89,4.52]
[1729959626611,2.9633,168.94,168.89,7.484]
[1729959628718,4.52,168.98,168.88,2.6038]
[1729959629017,1.212,168.97,168.88,7.1238]
[1729959629616,2.9636,168.93,168.88,7.1238]
[1729959630618,1.212,168.97,168.88,7.1238]
[1729959630820,2.9636,168.92,168.88,7.1238]
[1729959633819,2.9635,168.93,168.88,10.088]
[1729959636922,1.212,168.97,168.83,1.1993]
[1729959637118,1.212,168.97,168.83,2.458]
[1729959637314,1.252,168.96,168.83,2.458]
[1729959637521,1.252,168.96,168.84,4.52]
[1729959637823,2.9645,168.88,168.84,4.52]
[1729959639223,2.9645,168.88,168.84,7.485]
[1729959640320,4.52,168.92,168.83,1.2587]
[1729959640527,2.9647,168.86,168.83,1.2587]
[1729959640924,2.9641,168.9,168.83,1.2587]
[1729959641122,4.52,168.92,168.83,1.2587]
[1729959641627,2.9646,168.87,168.83,1.2587]
[1729959642428,2.9644,168.88,168.83,4.2239]
[1729959648334,4.52,168.92,168.83,1.2587]
[1729959648632,2.9642,168.89,168.84,2.9649]